fUST/lending_fUST_20240821
["ID","MTS","AMOUNT","RATE_DAILY","PERIOD"]
[335382411,1724170185806,-772.46,0.00019452,2]
[335382412,1724170185832,-588.5,0.00019562,2]
[335382413,1724170185868,-619.97,0.00019726,2]
[335382414,1724170185901,-500.0,0.00019726,2]
[335382415,1724170185934,-3384.67,0.00019726,2]
[335382416,1724170185962,-500.0,0.00019726,2]
[335382417,1724170185995,-500.0,0.00019726,2]
[335382418,1724170186028,-500.0,0.00019726,2]
[335382419,1724170186059,-500.0,0.00019726,2]
[335382420,1724170186091,-500.0,0.00019726,2]
[335382421,1724170186122,-772.46,0.00019726,2]
[335382422,1724170186152,-600.0,0.00019846,2]
[335382423,1724170186183,-223.36522717,0.0002,2]
[335382424,1724170186207,-154.57491897,0.0002,2]
[335382425,1724170186232,-300.68179885,0.0002,2]
[335382426,1724170186255,-619.97,0.0002,2]
[335382427,1724170186277,-150.112234,0.0002,2]
[335382428,1724170186299,-500.0,0.0002,2]
[335382429,1724170186324,-3384.67,0.0002,2]
[335382430,1724170186345,-151.31843755,0.0002,2]
[335382431,1724170186366,-500.0,0.0002,2]
[335382432,1724170186389,-211.38787141,0.0002,2]
[335382433,1724170186414,-500.0,0.0002,2]
[335382434,1724170186439,-500.0,0.0002,2]
[335382435,1724170186464,-500.0,0.0002,2]
[335382436,1724170186488,-772.46,0.0002,2]
[335382437,1724170186533,500.0,0.00016438,2]
[335382438,1724170186746,200.6388194,0.00016438,2]
[335382439,1724170186785,200.0,0.00016473,2]
[335382440,1724170186816,400.0,0.00017842,2]
[335382441,1724170186918,500.0,0.00016438,2]
[335382442,1724170186947,537.96894705,0.00016712,2]
[335382443,1724170186972,597.73726369,0.00016438,2]
[335382444,1724170187005,-311.30232248,0.0002013,2]
[335382445,1724170187027,-619.97,0.00020273,2]
[335382446,1724170187050,-465.03719435,0.00020273,2]
[335382447,1724170187073,-3384.67,0.00020273,2]
[335382448,1724170187094,-500.0,0.00020273,2]
[335382449,1724170187115,-500.0,0.00020273,2]
[335382450,1724170187138,-500.0,0.00020273,2]
[335382451,1724170187160,-500.0,0.00020273,2]
[335382452,1724170187182,-772.46,0.00020273,2]
[335382453,1724170187203,-600.0,0.00020346,2]
[335382454,1724170187225,-201.1978182,0.00020346,2]
[335382455,1724170187245,-500.0,0.0002046,2]
[335382456,1724170187267,-388.18939713,0.00020463,2]
[335382457,1724170187288,-619.97,0.00020547,2]
[335382458,1724170187310,-3384.67,0.00020547,2]
[335382459,1724170187330,-500.0,0.00020547,2]
[335382460,1724170187353,-500.0,0.00020547,2]
[335382461,1724170187376,-500.0,0.00020547,2]
[335382462,1724170187398,-500.0,0.00020547,2]
[335382463,1724170187421,-772.46,0.00020547,2]
[335382464,1724170187444,-464.342557,0.00020548,2]
[335382465,1724170187466,-4676.41330471,0.00020614,2]
[335382466,1724170187488,-449.14485,0.00020707,2]
[335382467,1724170187510,-619.97,0.00020821,2]
[335382468,1724170187533,-3384.67,0.00020821,2]
[335382469,1724170187554,-500.0,0.00020821,2]
[335382470,1724170187575,-500.0,0.00020821,2]
[335382471,1724170187596,-450.54608207,0.00020821,2]
[335382472,1724170187617,-500.0,0.00020821,2]
[335382473,1724170187638,-772.46,0.00020821,2]
[335382474,1724170187659,-150.112233,0.000209,3]
[335382475,1724170187679,-632.62162474,0.00020918,2]
[335382476,1724170187699,-150.112235,0.00021,2]
[335382477,1724170187720,-1000.0,0.00021,21]
[335382478,1724170187743,-150.0,0.00021,2]
[335382479,1724170187763,-619.97,0.00021095,2]
[335382480,1724170187784,-3384.67,0.00021095,2]
[335382481,1724170187804,-500.0,0.00021095,2]
[335382482,1724170187825,-500.0,0.00021095,2]
[335382483,1724170187847,-772.46,0.00021095,2]
[335382484,1724170187867,-588.5,0.00021105,2]
[335382485,1724170187888,-151.0,0.00021105,2]
[335382486,1724170187908,-500.0,0.00021189,2]
[335382487,1724170187928,-500.0,0.00021189,2]
[335382488,1724170187948,-619.97,0.00021369,2]
[335382489,1724170187970,-3384.67,0.00021369,2]
[335382490,1724170187991,-500.0,0.00021369,2]
[335382491,1724170188013,-500.0,0.00021369,2]
[335382492,1724170188036,-772.46,0.00021369,2]
[335382493,1724170188057,-619.97,0.00021643,2]
[335382494,1724170188079,-3384.67,0.00021643,2]
[335382495,1724170188101,-500.0,0.00021643,2]
[335382496,1724170188122,-500.0,0.00021643,2]
[335382497,1724170188144,-772.46,0.00021643,2]
[335382499,1724170188170,-150.112233,0.000218,3]
[335382502,1724170188193,-1472.24,0.000219,31]
[335382505,1724170188214,-1472.24,0.000219,31]
[335382508,1724170188236,-1472.24,0.000219,31]
[335382509,1724170188258,-1472.24,0.000219,31]
[335382510,1724170188281,-1472.24,0.000219,31]
[335382512,1724170188303,-1472.24,0.000219,31]
[335382514,1724170188324,-1472.24,0.000219,31]
[335382515,1724170188346,-1472.24,0.000219,31]
[335382516,1724170188368,-1472.24,0.000219,31]
[335382517,1724170188390,-1472.24,0.000219,31]
[335382518,1724170188414,-1472.24,0.000219,31]
[335382519,1724170188437,-1472.24,0.000219,31]
[335382520,1724170188460,-1472.24,0.000219,31]
[335382521,1724170188483,-1472.24,0.000219,31]
[335382522,1724170188507,-1472.24,0.000219,31]
[335382523,1724170188533,-1472.24,0.000219,31]
[335382524,1724170188556,-619.97,0.00021917,2]
[335382525,1724170188579,-3384.67,0.00021917,2]
[335382526,1724170188600,-630.86,0.00021917,2]
[335382527,1724170188622,-531.28662511,0.00021917,2]
[335382528,1724170188644,-772.46,0.00021917,2]
[335382529,1724170188671,-154.57491897,0.00022,2]
[335382530,1724170188692,-302.21432435,0.00022,2]
[335382531,1724170188713,-1694.7430816,0.0002217,2]
[335382532,1724170188735,-800.0,0.00022187,2]
[335382533,1724170188755,-619.97,0.00022191,2]
[335382534,1724170188776,-3384.67,0.00022191,2]
[335382535,1724170188797,-772.46,0.00022191,2]
[335382536,1724170188818,-302.21432435,0.0002222,2]
[335382537,1724170188838,-500.0,0.00022249,2]
[335382538,1724170188859,-500.0,0.00022249,2]
[335382539,1724170188880,-1008.67,0.000223,14]
[335382540,1724170188901,-49908.79499474,0.000223,14]
[335382541,1724170188929,500.0,0.00016438,2]
[335382542,1724170188954,500.0,0.00016438,2]
[335382543,1724170188979,500.0,0.00016438,2]
[335382544,1724170189006,500.0,0.00016438,2]
[335382545,1724170189034,521.51881635,0.00016712,2]
[335382546,1724170189069,500.0,0.00016438,2]
[335382547,1724170189101,500.0,0.00016438,2]
[335382548,1724170189128,500.0,0.00016438,2]
[335382549,1724170189207,521.11,0.00016438,2]
[335382550,1724170189276,500.0,0.00016438,2]
[335382551,1724170189326,504.32658863,0.00016438,2]
[335382552,1724170189402,500.0,0.00016438,2]
[335382553,1724170189557,500.0,0.00016438,2]
[335382554,1724170189594,500.0,0.00016712,2]
[335382555,1724170189636,217.71,0.00016986,2]
[335382556,1724170189688,302.36856451,0.00016438,2]
[335382557,1724170189720,500.0,0.00016438,2]
[335382558,1724170189748,531.8870573,0.00016438,2]
[335382559,1724170189817,817.60790766,0.0001,2]
[335382560,1724170190462,154.57491897,9.589e-05,2]
[335382561,1724170192935,8845.25511796,9.589e-05,2]
[335382562,1724170193241,500.0,0.00016438,2]
[335382563,1724170198806,500.0,0.00016438,2]
[335382564,1724170199083,275.16,0.00016712,2]
[335382565,1724170199708,501.2531801,0.00016438,2]
[335382566,1724170199950,187.78662389,9.589e-05,2]
[335382567,1724170203133,500.0,0.00016438,2]
[335382568,1724170203407,520.75865901,0.00016712,2]
[335382569,1724170206727,500.0,0.00016438,2]
[335382570,1724170207340,500.44561053,0.00016712,2]
[335382571,1724170207490,500.0,0.00016438,2]
[335382572,1724170209356,500.0,0.00016438,2]
[335382573,1724170209639,500.0,0.00016712,2]
[335382574,1724170210399,500.0,0.00016986,2]
[335382575,1724170210668,500.0,0.0001726,2]
[335382576,1724170210878,500.0,0.00016438,2]
[335382577,1724170212012,500.0,0.00016438,2]
[335382578,1724170212299,500.0,0.00016712,2]
[335382579,1724170213451,154.57491897,0.00014,2]
[335382580,1724170216543,71635.26528243,0.00016338,2]
[335382581,1724170216566,17252.73471757,0.00016338,2]
[335382582,1724170216680,612.9,0.00016438,2]
[335382583,1724170217271,500.0,0.00016438,2]
[335382584,1724170219438,5533.82740634,0.00011623,2]
[335382585,1724170220199,500.0,0.00016438,2]
[335382586,1724170221296,500.0,0.00016438,2]
[335382587,1724170222248,500.0,0.00016438,2]
[335382588,1724170222435,500.0,0.00016438,2]
[335382589,1724170223313,154.57491897,0.00017,2]
[335382590,1724170225498,782.65797788,0.00015,2]
[335382591,1724170228466,500.0,0.00016438,2]
[335382592,1724170229383,507.27484819,0.00016438,2]
[335382658,1724170233128,500.0,0.00016438,2]
[335382659,1724170234597,154.71377951,0.00016,2]
[335382660,1724170235173,500.0,0.00016438,2]
[335382661,1724170235448,500.0,0.00016438,2]
[335382662,1724170235720,500.0,0.00016438,2]
[335382663,1724170235996,553.71,0.00016438,2]
[335382664,1724170236467,154.57491897,0.00011623,2]
[335382665,1724170237851,500.0,0.00016438,2]
[335382685,1724170238422,500.0,0.00016712,2]
[335382699,1724170238573,-591.36095604,0.000222,4]
[335382700,1724170238585,-11924.39500526,0.000223,14]
[335382701,1724170238597,-302.21432435,0.0002244,2]
[335382702,1724170238608,-3135.64803338,0.00022458,30]
[335382703,1724170238618,-619.97,0.00022465,2]
[335382704,1724170238630,-772.46,0.00022465,2]
[335382705,1724170238641,-388.18939713,0.00022525,2]
[335382706,1724170238652,-588.5,0.00022649,2]
[335382707,1724170238663,-151.0,0.00022649,2]
[335382708,1724170238676,-302.21432435,0.0002266,2]
[335382709,1724170238687,-150.112233,0.000227,5]
[335382710,1724170238700,-620.13559456,0.00022739,2]
[335382711,1724170238713,-772.66098369,0.00022739,2]
[335382712,1724170238725,-255.72,0.000228,7]
[335382713,1724170238735,-302.21432435,0.0002288,2]
[335382715,1724170238746,-3000.0,0.00023,2]
[335382717,1724170238756,-150.112233,0.00023,4]
[335382719,1724170238766,-1000.0,0.00023,23]
[335382720,1724170238775,-517.36251035,0.00023099,2]
[335382722,1724170238784,-1472.24,0.000231,31]
[335382724,1724170238794,-1472.24,0.000231,31]
[335382726,1724170238803,-1472.24,0.000231,31]
[335382728,1724170238813,-1472.24,0.000231,31]
[335382729,1724170238822,-1472.24,0.000231,31]
[335382731,1724170238832,-1472.24,0.000231,31]
[335382733,1724170238841,-1472.24,0.000231,31]
[335382734,1724170238851,-1472.24,0.000231,31]
[335382735,1724170238860,-1472.24,0.000231,31]
[335382736,1724170238870,-1472.24,0.000231,31]
[335382737,1724170238880,-1472.24,0.000231,31]
[335382738,1724170238889,-1472.24,0.000231,31]
[335382739,1724170238899,-1472.24,0.000231,31]
[335382740,1724170238908,-1472.24,0.000231,31]
[335382741,1724170238918,-1472.24,0.000231,31]
[335382742,1724170238927,-1472.24,0.000231,31]
[335382743,1724170238937,-1472.24,0.000231,31]
[335382744,1724170238947,-1472.24,0.000231,31]
[335382745,1724170238956,-1472.24,0.000231,31]
[335382746,1724170238966,-1472.24,0.000231,31]
[335382747,1724170238976,-1472.24,0.000231,31]
[335382748,1724170238985,-1472.24,0.000231,31]
[335382749,1724170238996,-1472.24,0.000231,31]
[335382750,1724170239006,-1472.24,0.000231,31]
[335382751,1724170239016,-453.32148653,0.000231,4]
[335382752,1724170239026,-453.32148653,0.0002332,4]
[335382753,1724170239035,-500.0,0.00023361,2]
[335382754,1724170239045,-220.0,0.000235,7]
[335382755,1724170239055,-323.44507076,0.0002354,4]
[335382756,1724170239064,-150.112233,0.000236,3]
[335382757,1724170239073,-7726.0,0.00023836,2]
[335382758,1724170239083,-1719.09675076,0.00024024,2]
[335382759,1724170239092,-479.95119037,0.00024122,2]
[335382760,1724170239102,-256.37636834,0.00024123,2]
[335382761,1724170239111,-340.20051024,0.00024123,2]
[335382762,1724170239122,-500.0,0.00024123,2]
[335382763,1724170239131,-500.0,0.00024123,2]
[335382764,1724170239140,-500.0,0.00024123,2]
[335382765,1724170239152,-500.0,0.00024123,2]
[335382766,1724170239161,-500.0,0.00024123,2]
[335382767,1724170239171,-367.35640073,0.00024123,2]
[335382768,1724170239180,-500.0,0.00024123,2]
[335382769,1724170239190,-500.0,0.00024123,2]
[335382770,1724170239203,-500.0,0.00024123,2]
[335382771,1724170239213,-221295.17005,0.00024123,2]
[335382772,1724170239225,-10003.90066576,0.00024124,2]
[335382773,1724170239236,-10003.90066576,0.00024124,2]
[335382774,1724170239246,-154.57491897,0.00024184,2]
[335382775,1724170239258,-154.57491897,0.00024184,2]
[335382776,1724170239268,-588.5,0.00024193,2]
[335382777,1724170239277,-151.0,0.00024193,2]
[335382778,1724170239286,-1472.24,0.000242,31]
[335382779,1724170239295,-1472.24,0.000242,31]
[335382780,1724170239304,-1472.24,0.000242,31]
[335382781,1724170239313,-1472.24,0.000242,31]
[335382782,1724170239322,-1472.24,0.000242,31]
[335382783,1724170239332,-1472.24,0.000242,31]
[335382784,1724170239342,-1472.24,0.000242,31]
[335382785,1724170239352,-1472.24,0.000242,31]
[335382786,1724170239361,-1472.24,0.000242,31]
[335382787,1724170239372,-1472.24,0.000242,31]
[335382788,1724170239381,-1472.24,0.000242,31]
[335382789,1724170239391,-1472.24,0.000242,31]
[335382790,1724170239400,-1472.24,0.000242,31]
[335382791,1724170239410,-1472.24,0.000242,31]
[335382792,1724170239419,-1472.24,0.000242,31]
[335382793,1724170239430,-1472.24,0.000242,31]
[335382794,1724170239440,-1472.24,0.000242,31]
[335382795,1724170239455,-1472.24,0.000242,31]
[335382796,1724170239465,-1472.24,0.000242,31]
[335382797,1724170239475,-1472.24,0.000242,31]
[335382798,1724170239487,-1472.24,0.000242,31]
[335382799,1724170239499,-1472.24,0.000242,31]
[335382800,1724170239510,-1472.24,0.000242,31]
[335382801,1724170239521,-1472.24,0.000242,31]
[335382802,1724170239531,-435.0,0.00024215,2]
[335382803,1724170239541,-271.56079623,0.00024395,2]
[335382804,1724170239550,-200.0,0.00024488,2]
[335382805,1724170239560,-200.0,0.00024488,2]
[335382806,1724170239570,-150.112233,0.000245,5]
[335382807,1724170239580,-388.18939713,0.00024588,2]
[335382808,1724170239591,-380.0,0.00024658,2]
[335382809,1724170239601,-200.0,0.00024658,15]
[335382810,1724170239611,-200.0,0.00024658,2]
[335382811,1724170239620,-155.12080504,0.00024682,2]
[335382812,1724170239630,-1000.0,0.00024778,2]
[335382813,1724170239639,-217.64702912,0.00024803,2]
[335382814,1724170239650,-174.63720972,0.00024814,2]
[335382815,1724170239659,-154.71377951,0.00024818,2]
[335382816,1724170239668,-159.23515159,0.00024847,2]
[335382817,1724170239678,-150.112233,0.00025,4]
[335382818,1724170239688,-277.92028119,0.00025,30]
[335382819,1724170239698,-154.57491897,0.00025,2]
[335382820,1724170239709,-258.18032213,0.00025,120]
[335382821,1724170239719,-308.19214429,0.00025,2]
[335382822,1724170239729,-1000.0,0.00025,25]
[335382823,1724170239739,-503.64031218,0.00025,2]
[335382824,1724170239748,-503.64031218,0.0002525,2]
[335382825,1724170239758,-1008.67,0.000253,14]
[335382826,1724170239767,-61833.19,0.000253,14]
[335382827,1724170239778,-1472.24,0.000254,31]
[335382828,1724170239789,-1472.24,0.000254,31]
[335382829,1724170239799,-1472.24,0.000254,31]
[335382830,1724170239809,-1472.24,0.000254,31]
[335382831,1724170239819,-1472.24,0.000254,31]
[335382832,1724170239832,-503.64031218,0.000255,2]
[335382833,1724170239843,-588.5,0.00025737,2]
[335382834,1724170239854,-151.0,0.00025737,2]
[335382835,1724170239865,-610.32928288,0.0002575,2]
[335382836,1724170239875,-400.0,0.00025858,2]
[335382837,1724170239887,-401.06641908,0.00025858,2]
[335382838,1724170239898,-255.72,0.00026,7]
[335382839,1724170239908,-153.0,0.00026349,2]
[335382840,1724170239918,-388.18939713,0.0002665,2]
[335382841,1724170239928,-1719.09675073,0.00026743,2]
[335382842,1724170239938,-7726.0,0.00026836,2]
[335382843,1724170239951,-150.112233,0.00027,9]
[335382844,1724170239961,-1000.0,0.00027,27]
[335382845,1724170239971,-165.0,0.00027,2]
[335382846,1724170239981,-449.14485,0.00027167,2]
[335382847,1724170239992,-588.5,0.0002728,2]
[335382848,1724170240002,-151.0,0.0002728,2]
[335382849,1724170240012,-1000.0,0.00027397,2]
[335382850,1724170240022,-1000.0,0.00027397,2]
[335382851,1724170240031,-1000.0,0.00027397,2]
[335382852,1724170240041,-1000.0,0.00027397,2]
[335382853,1724170240052,-1008.45125076,0.00027397,2]
[335382854,1724170240063,-500.0,0.00027397,2]
[335382855,1724170240074,-500.0,0.00027397,2]
[335382856,1724170240085,-234.02837115,0.00027397,2]
[335382857,1724170240098,-799.49580145,0.00027573,5]
[335382858,1724170240110,-600.0,0.00027861,4]
[335382859,1724170240121,-224.399999,0.00028,2]
[335382860,1724170240132,-388.18939713,0.00028713,2]
[335382861,1724170240142,-165.0,0.00028767,2]
[335382862,1724170240158,-588.5,0.00028824,2]
[335382863,1724170240169,-151.0,0.00028824,2]
[335382864,1724170240178,-61833.19,0.000289,14]
[335382865,1724170240189,-300.0,0.00029,2]
[335382866,1724170240201,-150.112233,0.00029,8]
[335382867,1724170240212,-1719.09675073,0.00029462,2]
[335382868,1724170240222,-155.12080504,0.00029682,2]
[335382869,1724170240233,-7726.0,0.00029836,2]
[335382870,1724170240243,-198.29562586,0.00029887,2]
[335382871,1724170240255,-178.69269968,0.0003,5]
[335382872,1724170240266,-300.0,0.0003,2]
[335382873,1724170240276,-151.0,0.0003,120]
[335382874,1724170240287,-630.0,0.0003,120]
[335382875,1724170240297,-1008.67,0.0003,14]
[335382876,1724170240307,-261.0,0.0003,2]
[335382877,1724170240317,-321.78526839,0.0003,2]
[335382878,1724170240326,-255.72,0.000302,7]
[335382879,1724170240336,-880.97271542,0.00030202,4]
[335382880,1724170240347,-588.5,0.00030368,2]
[335382881,1724170240358,-151.0,0.00030368,2]
[335382882,1724170240368,-388.18939713,0.00030775,2]
[335382883,1724170240377,-495.14172481,0.00030836,2]
[335382884,1724170240386,-150.0,0.00030887,2]
[335382885,1724170240396,-300.0,0.00031,4]
[335382886,1724170240406,-150.112233,0.00031,5]
[335382887,1724170240416,-160.0,0.000311,3]
[335382888,1724170240425,-150.0,0.00031887,2]
[335382889,1724170240435,-588.5,0.00031912,3]
[335382890,1724170240446,-151.0,0.00031912,3]
[335382891,1724170240458,-300.0,0.00032,5]
[335382892,1724170240468,-755.0,0.000324,2]
[335382893,1724170240478,-7726.0,0.00032836,2]
[335382894,1724170240487,-388.18939713,0.00032838,2]
[335382895,1724170240496,-150.0,0.00032887,2]
[335382896,1724170240507,-11510.093154,0.00033,120]
[335382898,1724170240519,-300.0,0.00033,7]
[335382901,1724170240532,-150.112233,0.00033,6]
[335382903,1724170240543,-261.0,0.00033,2]
[335382904,1724170240554,-261.0,0.00033,2]
[335382905,1724170240565,-172.0,0.00033,2]
[335382907,1724170240577,-588.5,0.00033455,4]
[335382909,1724170240588,-151.0,0.00033455,4]
[335382911,1724170240598,-61833.19,0.000335,14]
[335382912,1724170240608,-449.14485,0.00033626,2]
[335382913,1724170240618,-150.0,0.00033887,2]
[335382914,1724170240631,-300.0,0.00034,9]
[335382915,1724170240641,-5261.9,0.00034,3]
[335382916,1724170240651,-1008.67,0.00034,14]
[335382917,1724170240664,-1932.186094,0.00034,17]
[335382918,1724170240675,-238.650032,0.00034247,2]
[335382919,1724170240685,-478.77,0.000343,120]
[335382920,1724170240696,-478.771,0.000343,120]
[335382921,1724170240706,-478.771,0.000343,120]
[335382922,1724170240717,-478.771,0.000343,120]
[335382923,1724170240729,-478.771,0.000343,120]
[335382924,1724170240739,-1000.0,0.000345,17]
[335382925,1724170240749,-172.0,0.00034521,2]
[335382926,1724170240867,-155.12080504,0.00034682,9]
[335382928,1724170240880,-150.0,0.00034887,2]
[335382930,1724170240890,-1000.0,0.00034888,3]
[335382932,1724170240899,-388.18939713,0.000349,2]
[335382934,1724170240909,-673.07858906,0.00034998,2]
[335382936,1724170240919,-588.5,0.00034999,4]
[335382938,1724170240929,-151.0,0.00034999,4]
[335382940,1724170240938,-2853.63,0.00034999,2]
[335382943,1724170240948,-2853.63,0.00034999,2]
[335382945,1724170240958,-2853.63,0.00034999,2]
[335382948,1724170240967,-2853.63,0.00034999,2]
[335382951,1724170240976,-2853.63,0.00034999,2]
[335382954,1724170240985,-2853.63,0.00034999,2]
[335382956,1724170240994,-2853.63,0.00034999,2]
[335382959,1724170241003,-2853.63,0.00034999,2]
[335382962,1724170241012,-2853.63,0.00034999,2]
[335382965,1724170241021,-2853.63,0.00034999,2]
[335382967,1724170241031,-160.0,0.00034999,4]
[335382970,1724170241040,-160.0,0.00034999,5]
[335382972,1724170241050,-116173.05175234,0.00035,5]
[335382974,1724170241060,-1275785.89399017,0.00035,30]
[335382977,1724170241078,-328.62870693,0.00035,30]
[335382988,1724170241174,274.09528428,0.00011623,2]
[335382991,1724170241194,-2338.20665239,0.00023,2]
[335382993,1724170241204,-555.66405176,0.00024162,2]
[335382996,1724170241214,-1719.09675073,0.00032181,2]
[335382998,1724170241223,-760652.9064159,0.00035,30]
[335383115,1724170242892,8845.25511796,0.00011623,2]
[335383146,1724170243737,-2322.68684084,0.000222,2]
[335383148,1724170243747,-500.0,0.00023099,2]
[335383150,1724170243757,-500.0,0.00023373,2]
[335383151,1724170243767,-456.9,0.000255,31]
[335383152,1724170243780,-456.9,0.000255,31]
[335383153,1724170243790,-456.9,0.000255,31]
[335383154,1724170243800,-456.9,0.000255,31]
[335383155,1724170243810,-456.9,0.000255,31]
[335383156,1724170243819,-456.9,0.000255,31]
[335383157,1724170243828,-456.9,0.000266,31]
[335383158,1724170243839,-456.9,0.000266,31]
[335383159,1724170243850,-456.9,0.000266,31]
[335383160,1724170243861,-456.9,0.000266,31]
[335383161,1724170243872,-456.9,0.000266,31]
[335383162,1724170243882,-456.9,0.000266,31]
[335383163,1724170243892,-456.9,0.000266,31]
[335383164,1724170243902,-456.9,0.000266,31]
[335383165,1724170243912,-456.9,0.000266,31]
[335383166,1724170243921,-456.9,0.000266,31]
[335383167,1724170243931,-456.9,0.000266,31]
[335383169,1724170243941,-456.9,0.000266,31]
[335383172,1724170243954,-1719.09675073,0.000349,2]
[335383174,1724170243964,-1997646.04154,0.00035,30]
[335383176,1724170243976,-68470.38719406,0.00035,30]
[335383177,1724170244002,-456.9,0.000255,31]
[335383178,1724170244011,-456.9,0.000255,31]
[335383179,1724170244022,-456.9,0.000255,31]
[335383180,1724170244033,-67133.75956965,0.00035,30]
[335383207,1724170246432,500.0,0.00016438,2]
[335383210,1724170246628,-456.9,0.000233,31]
[335383211,1724170246637,-456.9,0.000233,31]
[335383212,1724170246646,-94.78045056,0.000233,31]
[335383214,1724170248233,492.65045204,0.0001295,2]
[335383215,1724170251116,500.0,0.00016438,2]
[335383216,1724170252613,500.0,0.00016438,2]
[335383217,1724170252914,500.0,0.00016712,2]
[335383218,1724170253297,500.0,0.00016438,2]
[335383219,1724170253383,500.0,0.00016986,2]
[335383220,1724170253574,500.0,0.00016712,2]
[335383221,1724170253649,507.17862359,0.0001726,2]
[335383222,1724170253847,500.0,0.00016986,2]
[335383223,1724170255775,500.0,0.00016438,2]
[335383224,1724170256053,500.0,0.00016712,2]
[335383225,1724170256357,500.0,0.00016986,2]
[335383226,1724170256617,500.0,0.0001726,2]
[335383227,1724170258623,200.0,0.00011623,2]
[335383228,1724170258777,500.0,0.00016438,2]
[335383229,1724170259075,500.0,0.00016712,2]
[335383230,1724170259368,500.0,0.00016986,2]
[335383231,1724170259659,338.80424106,0.0001726,2]
[335383232,1724170263441,235.03331694,0.00014,2]
[335383233,1724170264396,20797.12874944,0.00011623,2]
[335383234,1724170269130,500.0,0.00016438,2]
[335383235,1724170269460,500.0,0.00016438,2]
[335383236,1724170278444,500.0,0.00016438,2]
[335383237,1724170278731,598.27507587,0.00016712,2]
[335383238,1724170290934,500.0,0.00016438,2]
[335383239,1724170291229,500.0,0.00016712,2]
[335383240,1724170291509,500.0,0.00016986,2]
[335383241,1724170291787,500.0,0.0001726,2]
[335383248,1724170336683,154.76012181,0.0001726,2]
[335383309,1724171226158,-300.0,0.00011585,2]
[335383310,1724171226181,-2254.61565528,0.00011586,2]
[335383311,1724171226210,-771.13297607,0.00011586,2]
[335383312,1724171233103,-2124.86476104,0.00011586,2]
[335383313,1724171245141,-204.20062038,0.00011586,2]
[335383315,1724171249100,-3241.37620395,0.00011586,2]
[335383316,1724171253166,-363.13478712,0.00011586,2]
[335383317,1724171254108,-5267.88323394,0.00011586,2]
[335383321,1724171348177,-300.0,0.00011585,2]
[335383322,1724171348197,-7363.7473724,0.00011586,2]
[335383323,1724171359261,-3309.04438982,0.00011586,2]
[335383324,1724171359284,-1671.98997101,0.00011586,2]
[335383325,1724171359306,-218.51615349,0.00011586,2]
[335383326,1724171359327,-20797.12874944,0.00011842,2]
[335383327,1724171359347,-1161.0,0.00012,2]
[335383328,1724171359371,-8845.25511796,0.00012163,2]
[335383329,1724171359392,-11142.60680549,0.00012163,2]
[335383330,1724171359412,-7014.13255051,0.00012551,2]